fUST/lending_fUST_20250702
["ID","MTS","AMOUNT","RATE_DAILY","PERIOD"]
[369027859,1751436648780,-460.0,0.00016712,2]
[369027860,1751436648789,-460.0,0.00016712,2]
[369027861,1751436648800,-460.0,0.00016712,2]
[369027862,1751436648811,-460.0,0.00016712,2]
[369027863,1751436648821,-460.0,0.00016712,2]
[369027864,1751436648831,-460.0,0.00016712,2]
[369027865,1751436648840,-460.0,0.00016712,2]
[369027866,1751436648852,-397.40229854,0.00016712,2]
[369027867,1751436648862,-460.0,0.00016712,2]
[369027868,1751436648872,-1365.98,0.00016712,2]
[369027869,1751436648881,-460.0,0.00016712,2]
[369027870,1751436648891,-460.0,0.00016712,2]
[369027871,1751436648900,-460.0,0.00016712,2]
[369027872,1751436648909,-500.0,0.00016712,2]
[369027873,1751436648919,-472.56689404,0.00016712,2]
[369027874,1751436648929,-460.0,0.00016712,2]
[369027875,1751436648938,-460.0,0.00016712,2]
[369027876,1751436648948,-460.0,0.00016712,2]
[369027877,1751436648958,-460.0,0.00016712,2]
[369027878,1751436648967,-462.19240207,0.00016712,2]
[369027879,1751436648976,-460.0,0.00016712,2]
[369027880,1751436648987,-460.0,0.00016712,2]
[369027881,1751436648996,-460.0,0.00016712,2]
[369027882,1751436649006,-460.0,0.00016712,2]
[369027883,1751436649015,-460.0,0.00016712,2]
[369027884,1751436649024,-463.16573853,0.00016712,2]
[369027885,1751436649035,-460.0,0.00016712,2]
[369027886,1751436649046,-460.0,0.00016712,2]
[369027887,1751436649056,-460.0,0.00016712,2]
[369027888,1751436649065,-409.27241489,0.00016712,2]
[369027889,1751436649075,-460.0,0.00016712,2]
[369027890,1751436649084,-460.0,0.00016712,2]
[369027891,1751436649093,-462.45976577,0.00016712,2]
[369027892,1751436649103,-460.0,0.00016712,2]
[369027893,1751436649112,-499.66197602,0.00016712,2]
[369027894,1751436649122,-406.42686552,0.00016712,2]
[369027895,1751436649132,-460.0,0.00016712,2]
[369027896,1751436649142,-1529.56,0.00016712,2]
[369027897,1751436649152,-460.0,0.00016712,2]
[369027898,1751436649162,-460.0,0.00016712,2]
[369027899,1751436649171,-460.0,0.00016712,2]
[369027900,1751436649181,-460.0,0.00016712,2]
[369027901,1751436649190,-460.0,0.00016712,2]
[369027902,1751436649200,-460.0,0.00016712,2]
[369027903,1751436649210,-460.0,0.00016712,2]
[369027904,1751436649220,-698.57,0.00016712,2]
[369027905,1751436649230,-460.0,0.00016712,2]
[369027906,1751436649239,-460.0,0.00016712,2]
[369027907,1751436649249,-499.77,0.00016712,2]
[369027908,1751436649258,-460.0,0.00016712,2]
[369027909,1751436649268,-228.39700008,0.00016712,2]
[369027910,1751436649277,-460.0,0.00016712,2]
[369027911,1751436649289,-896.7,0.00016712,2]
[369027912,1751436649299,-1687.07,0.00016712,2]
[369027913,1751436649308,-503.97453082,0.00016712,2]
[369027914,1751436649318,-460.0,0.00016712,2]
[369027915,1751436649327,-460.0,0.00016712,2]
[369027916,1751436649337,-460.0,0.00016712,2]
[369027917,1751436649347,-460.0,0.00016712,2]
[369027918,1751436649357,-460.0,0.00016712,2]
[369027919,1751436649366,-1999.64,0.00016712,2]
[369027920,1751436649377,-460.0,0.00016712,2]
[369027921,1751436649386,-460.0,0.00016712,2]
[369027922,1751436649396,-542.06,0.00016712,2]
[369027923,1751436649406,-460.0,0.00016712,2]
[369027924,1751436649415,-460.0,0.00016712,2]
[369027925,1751436649425,-460.0,0.00016712,2]
[369027926,1751436649434,-460.0,0.00016712,2]
[369027927,1751436649443,-460.0,0.00016712,2]
[369027928,1751436649453,-460.0,0.00016712,2]
[369027929,1751436649463,-460.0,0.00016712,2]
[369027930,1751436649473,-460.0,0.00016712,2]
[369027931,1751436649483,-460.0,0.00016712,2]
[369027932,1751436649492,-1296.4,0.00016712,2]
[369027933,1751436649502,-493.25453304,0.00016712,2]
[369027934,1751436649513,-460.0,0.00016712,2]
[369027935,1751436649522,-462.85229283,0.00016712,2]
[369027936,1751436649531,-460.0,0.00016712,2]
[369027937,1751436649540,-460.0,0.00016712,2]
[369027938,1751436649552,-460.0,0.00016712,2]
[369027939,1751436649561,-460.0,0.00016712,2]
[369027940,1751436649572,-460.0,0.00016712,2]
[369027941,1751436649581,-662.67,0.00016712,2]
[369027942,1751436649591,-460.0,0.00016712,2]
[369027943,1751436649600,-460.0,0.00016712,2]
[369027944,1751436649610,-489.97,0.00016712,2]
[369027945,1751436649619,-460.0,0.00016712,2]
[369027946,1751436649629,-460.0,0.00016712,2]
[369027947,1751436649639,-578.9,0.00016712,2]
[369027948,1751436649649,-460.0,0.00016712,2]
[369027949,1751436649658,-460.0,0.00016712,2]
[369027950,1751436649667,-1000.0,0.00016712,2]
[369027951,1751436649677,-1179.15,0.00016712,2]
[369027952,1751436649687,-460.0,0.00016712,2]
[369027953,1751436649696,-460.0,0.00016712,2]
[369027954,1751436649706,-460.0,0.00016712,2]
[369027955,1751436649715,-460.0,0.00016712,2]
[369027956,1751436649725,-733.23,0.00016712,2]
[369027957,1751436649735,-460.0,0.00016712,2]
[369027958,1751436649745,-460.0,0.00016712,2]
[369027959,1751436649754,-460.0,0.00016712,2]
[369027960,1751436649763,-460.0,0.00016712,2]
[369027961,1751436649775,-264.98772848,0.00016712,2]
[369027962,1751436649786,-460.0,0.00016712,2]
[369027963,1751436649795,-470.02174558,0.00016712,2]
[369027964,1751436649805,-460.0,0.00016712,2]
[369027965,1751436649814,-460.0,0.00016712,2]
[369027966,1751436649824,-460.0,0.00016712,2]
[369027967,1751436649833,-460.0,0.00016712,2]
[369027968,1751436649843,-460.0,0.00016712,2]
[369027969,1751436649852,-460.0,0.00016712,2]
[369027970,1751436649862,-460.0,0.00016712,2]
[369027971,1751436649871,-460.0,0.00016712,2]
[369027972,1751436649881,-460.0,0.00016712,2]
[369027973,1751436649891,-581.77,0.00016712,2]
[369027974,1751436649900,-460.0,0.00016712,2]
[369027975,1751436649910,-460.0,0.00016712,2]
[369027976,1751436649919,-460.0,0.00016712,2]
[369027977,1751436649929,-460.0,0.00016712,2]
[369027978,1751436649938,-959.8,0.00016712,2]
[369027979,1751436649948,-460.0,0.00016712,2]
[369027980,1751436649959,-460.0,0.00016712,2]
[369027981,1751436649969,-460.0,0.00016712,2]
[369027982,1751436649978,-460.0,0.00016712,2]
[369027983,1751436649988,-460.0,0.00016712,2]
[369027984,1751436649998,-460.0,0.00016712,2]
[369027985,1751436650007,-460.0,0.00016712,2]
[369027986,1751436650017,-460.0,0.00016712,2]
[369027987,1751436650027,-460.0,0.00016712,2]
[369027988,1751436650036,-446.24199375,0.00016712,2]
[369027989,1751436650046,-715.11,0.00016712,2]
[369027990,1751436650055,-460.0,0.00016712,2]
[369027991,1751436650065,-591.5,0.00016712,2]
[369027992,1751436650075,-1669.95,0.00016712,2]
[369027993,1751436650085,-460.0,0.00016712,2]
[369027994,1751436650095,-460.0,0.00016712,2]
[369027995,1751436650104,-322.48563571,0.00016749,2]
[369027996,1751436650113,-287.41363752,0.00016773,2]
[369027997,1751436650123,-501.12485719,0.00016773,2]
[369027998,1751436650132,-500.0,0.00016773,2]
[369027999,1751436650143,-500.0,0.00016773,2]
[369028000,1751436650153,-500.0,0.00016773,2]
[369028001,1751436650163,-500.0,0.00016872,2]
[369028002,1751436650172,-445.19777353,0.00016873,2]
[369028003,1751436650182,-500.0,0.00016885,2]
[369028004,1751436650351,-500.0,0.00016885,2]
[369028005,1751436650360,-500.0,0.00016885,2]
[369028006,1751436650370,-500.0,0.00016885,2]
[369028007,1751436650379,-500.0,0.00016885,2]
[369028008,1751436650389,-500.0,0.00016885,2]
[369028009,1751436650400,-606.76,0.00016885,2]
[369028010,1751436650409,-2057.94698332,0.00016886,2]
[369028011,1751436650419,-171827.54396699,0.00016886,2]
[369028012,1751436650590,-555.68,0.00016886,2]
[369028013,1751436650602,-65627.37062589,0.00016886,2]
[369028014,1751436650614,-20188.57671851,0.00016886,2]
[369028015,1751436650630,-2858.67643723,0.00016886,2]
[369028016,1751436651058,-456.81367445,0.00016438,2]
[369028017,1751436651068,-2212.8482529,0.00016886,2]
[369028018,1751436651089,-460.0,0.00016438,2]
[369028019,1751436651099,-2708.09438538,0.00016886,2]
[369028020,1751436651506,-151.0,0.00016438,2]
[369028021,1751436651516,-460.0,0.00016438,2]
[369028022,1751436651526,-460.0,0.00016712,2]
[369028023,1751436651536,-36603.088649,0.00016886,2]
[369028024,1751436651659,-1057.83142709,0.00016438,2]
[369028025,1751436651949,-33.03980999,0.00016438,2]
[369028026,1751436651962,-198.03876292,0.00016438,2]
[369028027,1751436651971,-461.36768759,0.00016438,2]
[369028028,1751436651981,-460.0,0.00016438,2]
[369028029,1751436651991,-1288.91,0.00016712,2]
[369028030,1751436652000,-460.0,0.00016712,2]
[369028031,1751436652009,-839.74390059,0.00016886,2]
[369028032,1751436652678,-66578.37706351,0.00016886,2]
[369028033,1751436652687,-460.0,0.00016986,2]
[369028034,1751436652697,-460.0,0.00016986,2]
[369028035,1751436652706,-460.0,0.00016986,2]
[369028036,1751436652715,-460.0,0.00016986,2]
[369028037,1751436652725,-460.0,0.00016986,2]
[369028038,1751436652735,-460.0,0.00016986,2]
[369028039,1751436652745,-460.0,0.00016986,2]
[369028040,1751436652754,-460.0,0.00016986,2]
[369028041,1751436652763,-460.0,0.00016986,2]
[369028042,1751436652776,-553.29254202,0.00016986,2]
[369028043,1751436652786,-460.0,0.00016986,2]
[369028044,1751436652795,-460.0,0.00016986,2]
[369028045,1751436652804,-460.0,0.00016986,2]
[369028046,1751436652815,-460.0,0.00016986,2]
[369028047,1751436652825,-460.0,0.00016986,2]
[369028048,1751436652834,-460.0,0.00016986,2]
[369028049,1751436652843,-451.82823362,0.00016986,2]
[369028050,1751436652854,-460.0,0.00016986,2]
[369028051,1751436652863,-460.0,0.00016986,2]
[369028052,1751436652873,-460.0,0.00016986,2]
[369028053,1751436652883,-460.0,0.00016986,2]
[369028054,1751436652892,-460.0,0.00016986,2]
[369028055,1751436652902,-400.54875,0.00016986,2]
[369028056,1751436652912,-254.02805023,0.00016986,2]
[369028057,1751436652922,-460.0,0.00016986,2]
[369028058,1751436652931,-460.0,0.00016986,2]
[369028059,1751436652942,-460.0,0.00016986,2]
[369028060,1751436652951,-460.0,0.00016986,2]
[369028061,1751436652961,-460.0,0.00016986,2]
[369028062,1751436652971,-460.0,0.00016986,2]
[369028063,1751436652981,-460.0,0.00016986,2]
[369028064,1751436652990,-460.0,0.00016986,2]
[369028065,1751436653000,-460.0,0.00016986,2]
[369028066,1751436653010,-460.0,0.00016986,2]
[369028067,1751436653019,-460.0,0.00016986,2]
[369028068,1751436653030,-460.0,0.00016986,2]
[369028069,1751436653039,-460.0,0.00016986,2]
[369028070,1751436653049,-500.0,0.00016986,2]
[369028071,1751436653059,-345.22032504,0.00016986,2]
[369028072,1751436653068,-460.0,0.00016986,2]
[369028073,1751436653078,-460.0,0.00016986,2]
[369028074,1751436653087,-460.0,0.00016986,2]
[369028075,1751436653097,-220.48350211,0.00016986,2]
[369028076,1751436653106,-460.0,0.00016986,2]
[369028077,1751436653116,-500.0,0.00016986,2]
[369028078,1751436653125,-460.0,0.00016986,2]
[369028079,1751436653134,-460.0,0.00016986,2]
[369028080,1751436653144,-460.0,0.00016986,2]
[369028081,1751436653153,-460.0,0.00016986,2]
[369028082,1751436653163,-460.0,0.00016986,2]
[369028083,1751436653172,-460.0,0.00016986,2]
[369028084,1751436653182,-465.38985356,0.00016986,2]
[369028085,1751436653192,-490.14951915,0.00016986,2]
[369028086,1751436653201,-460.0,0.00016986,2]
[369028087,1751436653210,-460.0,0.00016986,2]
[369028088,1751436653220,-460.0,0.00016986,2]
[369028089,1751436653230,-460.0,0.00016986,2]
[369028090,1751436653240,-460.0,0.00016986,2]
[369028091,1751436653249,-373.7,0.00016986,2]
[369028092,1751436653258,-460.0,0.00016986,2]
[369028093,1751436653415,-430.0,0.00016986,2]
[369028094,1751436653429,-460.0,0.00016986,2]
[369028095,1751436653439,-177.11346123,0.00016986,2]
[369028096,1751436653449,-460.0,0.00016986,2]
[369028097,1751436653459,-460.0,0.00016986,2]
[369028098,1751436653470,-313.61328799,0.00016986,2]
[369028099,1751436653480,-460.0,0.00016986,2]
[369028100,1751436653490,-460.0,0.00016986,2]
[369028101,1751436653500,-460.0,0.00016986,2]
[369028102,1751436653511,-460.0,0.00016986,2]
[369028103,1751436653520,-460.0,0.00016986,2]
[369028104,1751436653530,-460.0,0.00016986,2]
[369028105,1751436653540,-460.0,0.00016986,2]
[369028106,1751436653550,-460.0,0.00016986,2]
[369028107,1751436653561,-461.56289269,0.00016986,2]
[369028108,1751436653571,-460.0,0.00016986,2]
[369028109,1751436653581,-460.0,0.00016986,2]
[369028110,1751436653591,-474.13,0.00016986,2]
[369028111,1751436653600,-460.0,0.00016986,2]
[369028112,1751436653610,-460.0,0.00016986,2]
[369028113,1751436653619,-460.0,0.00016986,2]
[369028114,1751436653629,-460.0,0.00016986,2]
[369028115,1751436653638,-460.0,0.00016986,2]
[369028116,1751436653647,-460.0,0.00016986,2]
[369028117,1751436653657,-460.0,0.00016986,2]
[369028118,1751436653666,-460.0,0.00016986,2]
[369028119,1751436653676,-460.0,0.00016986,2]
[369028120,1751436653686,-460.0,0.00016986,2]
[369028121,1751436653696,-462.39764,0.00016986,2]
[369028122,1751436653706,-460.0,0.00016986,2]
[369028123,1751436653716,-460.0,0.00016986,2]
[369028124,1751436653726,-464.20099809,0.00016986,2]
[369028125,1751436653736,-460.0,0.00016986,2]
[369028126,1751436653746,-460.0,0.00016986,2]
[369028127,1751436653757,-460.0,0.00016986,2]
[369028128,1751436653767,-460.0,0.00016986,2]
[369028129,1751436653780,-460.0,0.00016986,2]
[369028130,1751436653790,-454.57387414,0.00016986,2]
[369028131,1751436653800,-460.0,0.00016986,2]
[369028132,1751436653810,-460.0,0.00016986,2]
[369028133,1751436653819,-460.0,0.00016986,2]
[369028134,1751436653830,-460.0,0.00016986,2]
[369028135,1751436653840,-460.0,0.00016986,2]
[369028136,1751436653849,-460.0,0.00016986,2]
[369028137,1751436653860,-460.0,0.00016986,2]
[369028138,1751436653870,-460.0,0.00016986,2]
[369028139,1751436653880,-1484.76,0.00016986,2]
[369028140,1751436653890,-460.0,0.00016986,2]
[369028141,1751436653900,-460.0,0.00016986,2]
[369028142,1751436653909,-460.0,0.00016986,2]
[369028143,1751436653919,-460.0,0.00016986,2]
[369028144,1751436653928,-460.0,0.00016986,2]
[369028145,1751436653938,-460.0,0.00016986,2]
[369028146,1751436653949,-460.0,0.00016986,2]
[369028147,1751436653959,-460.0,0.00016986,2]
[369028148,1751436653969,-460.0,0.00016986,2]
[369028149,1751436653978,-460.0,0.00016986,2]
[369028150,1751436653988,-460.0,0.00016986,2]
[369028151,1751436653998,-460.0,0.00016986,2]
[369028152,1751436654007,-460.0,0.00016986,2]
[369028153,1751436654017,-460.0,0.00016986,2]
[369028154,1751436654027,-460.0,0.00016986,2]
[369028155,1751436654037,-460.0,0.00016986,2]
[369028156,1751436654046,-460.0,0.00016986,2]
[369028157,1751436654056,-460.0,0.00016986,2]
[369028158,1751436654065,-460.0,0.00016986,2]
[369028159,1751436654076,-477.79,0.00016986,2]
[369028160,1751436654086,-1315.65,0.00016986,2]
[369028161,1751436654095,-460.0,0.00016986,2]
[369028162,1751436654106,-460.0,0.00016986,2]
[369028163,1751436654115,-460.0,0.00016986,2]
[369028164,1751436654124,-460.0,0.00016986,2]
[369028165,1751436654134,-586.76056324,0.00016986,2]
[369028166,1751436654144,-460.0,0.00016986,2]
[369028167,1751436654153,-460.0,0.00016986,2]
[369028168,1751436654163,-460.0,0.00016986,2]
[369028169,1751436654174,-460.0,0.00016986,2]
[369028170,1751436654183,-461.27021462,0.00016986,2]
[369028171,1751436654192,-460.0,0.00016986,2]
[369028172,1751436654202,-460.0,0.00016986,2]
[369028173,1751436654211,-460.0,0.00016986,2]
[369028174,1751436654221,-460.0,0.00016986,2]
[369028175,1751436654232,-460.0,0.00016986,2]
[369028176,1751436654243,-460.0,0.00016986,2]
[369028177,1751436654255,-460.0,0.00016986,2]
[369028178,1751436654264,-562.59,0.00016986,2]
[369028179,1751436654276,-460.0,0.00016986,2]
[369028180,1751436654286,-460.0,0.00016986,2]
[369028181,1751436654297,-460.0,0.00016986,2]
[369028182,1751436654308,-460.0,0.00016986,2]
[369028183,1751436654317,-460.0,0.00016986,2]
[369028184,1751436654328,-460.0,0.00016986,2]
[369028185,1751436654340,-466.56868082,0.00016986,2]
[369028186,1751436654350,-460.0,0.00016986,2]
[369028187,1751436654362,-460.0,0.00016986,2]
[369028188,1751436654372,-1365.98,0.00016986,2]
[369028189,1751436654382,-460.0,0.00016986,2]
[369028190,1751436654391,-248.4592784,0.00016986,2]
[369028191,1751436654400,-500.0,0.00016986,2]
[369028192,1751436654410,-460.0,0.00016986,2]
[369028193,1751436654419,-460.0,0.00016986,2]
[369028194,1751436654429,-462.7363197,0.00016986,2]
[369028195,1751436654438,-460.0,0.00016986,2]
[369028196,1751436654448,-491.33384198,0.00016986,2]
[369028197,1751436654458,-461.40990005,0.00016986,2]
[369028198,1751436654468,-460.0,0.00016986,2]
[369028199,1751436654479,-462.79927387,0.00016986,2]
[369028200,1751436654489,-460.0,0.00016986,2]
[369028201,1751436654499,-460.0,0.00016986,2]
[369028202,1751436654509,-468.54,0.00016986,2]
[369028203,1751436654519,-460.0,0.00016986,2]
[369028204,1751436654529,-460.0,0.00016986,2]
[369028205,1751436654539,-460.0,0.00016986,2]
[369028206,1751436654549,-460.0,0.00016986,2]
[369028207,1751436654559,-1529.56,0.00016986,2]
[369028208,1751436654569,-460.0,0.00016986,2]
[369028209,1751436654579,-467.14685063,0.00016986,2]
[369028210,1751436654588,-460.0,0.00016986,2]
[369028211,1751436654598,-460.0,0.00016986,2]
[369028212,1751436654607,-460.0,0.00016986,2]
[369028213,1751436654617,-460.0,0.00016986,2]
[369028214,1751436654627,-605.90205235,0.00016986,2]
[369028215,1751436654636,-698.57,0.00016986,2]
[369028216,1751436654645,-460.0,0.00016986,2]
[369028217,1751436654655,-499.77,0.00016986,2]
[369028218,1751436654665,-460.0,0.00016986,2]
[369028219,1751436654675,-340.11037895,0.00016986,2]
[369028220,1751436654684,-460.0,0.00016986,2]
[369028221,1751436654694,-896.7,0.00016986,2]
[369028222,1751436654703,-1687.07,0.00016986,2]
[369028223,1751436654713,-460.0,0.00016986,2]
[369028224,1751436654722,-460.0,0.00016986,2]
[369028225,1751436654732,-460.0,0.00016986,2]
[369028226,1751436654741,-460.0,0.00016986,2]
[369028227,1751436654751,-1999.64,0.00016986,2]
[369028228,1751436654761,-460.0,0.00016986,2]
[369028229,1751436654772,-460.0,0.00016986,2]
[369028230,1751436654786,-542.06,0.00016986,2]
[369028231,1751436654795,-460.0,0.00016986,2]
[369028232,1751436654804,-460.0,0.00016986,2]
[369028233,1751436654813,-460.0,0.00016986,2]
[369028234,1751436654824,-460.0,0.00016986,2]
[369028235,1751436654834,-1296.4,0.00016986,2]
[369028236,1751436654843,-432.53520321,0.00016986,2]
[369028237,1751436654854,-460.0,0.00016986,2]
[369028238,1751436654863,-460.0,0.00016986,2]
[369028239,1751436654872,-460.0,0.00016986,2]
[369028240,1751436654882,-662.67,0.00016986,2]
[369028241,1751436654893,-460.0,0.00016986,2]
[369028242,1751436654904,-489.97,0.00016986,2]
[369028243,1751436654913,-430.33752276,0.00016986,2]
[369028244,1751436654924,-209.54756761,0.00016986,2]
[369028260,1751436725829,-813.87820138,0.00016307,2]
[369028261,1751436725852,-300.0,0.00016309,2]
[369028262,1751436725880,-111.12179862,0.0001631,2]
[369028263,1751436907938,-177.4536902,0.0001621,2]
[369028264,1751437029922,189.5353303,0.00015429,2]
[369028265,1751437113448,257.1679416,0.00015307,2]
[369028266,1751437178671,24900.0,0.00015306,2]
[369028268,1751437267568,222.44340487,0.00015972,2]
[369028269,1751437402858,-227.77678886,0.00016238,2]
[369028270,1751437492896,-189.35706769,0.00016238,2]
[369028271,1751437495617,-151.1189796,0.00016238,2]
[369028272,1751437497265,-193.96505387,0.00016238,2]
[369028273,1751437501702,-60.96090334,0.00016238,2]
[369028274,1751437501726,-91.62841988,0.00016297,2]
[369028275,1751437504776,203.95508502,0.00015954,2]
[369028392,1751437612906,-165.03300639,0.00016298,2]
[369028606,1751437685993,323.156103,0.00013699,2]
[369028619,1751437754102,170.1661507,0.00015812,2]
[369028620,1751437757139,-231.90331916,0.00016298,2]
[369028621,1751437765948,-968.09668084,0.00016298,2]
[369028622,1751437765983,-300.0,0.00016298,2]
[369028623,1751437766013,-300.0,0.00016299,2]
[369028624,1751437766042,-300.0,0.00016299,2]
[369028625,1751437766073,-300.0,0.00016299,2]
[369028626,1751437766102,-1200.0,0.00016299,2]
[369028627,1751437766132,-980.68,0.000163,3]
[369028628,1751437766162,-490.34,0.000163,3]
[369028629,1751437766192,-245.17,0.000163,3]
[369028630,1751437766222,-735.53,0.000163,3]
[369028631,1751437766251,-6157.96674399,0.00016301,2]
[369028632,1751437766291,-267.93966709,0.00016301,2]
[369028633,1751437766334,-8.55381616,0.00016301,2]
[369028634,1751437766468,-491.44618384,0.00016301,2]
[369028635,1751437766515,-500.0,0.00016301,2]
[369028636,1751437766564,-177.4536902,0.00016301,2]
[369028637,1751437766602,-500.0,0.00016301,2]
[369028638,1751437766646,-500.0,0.00016301,2]
[369028639,1751437766686,-500.0,0.00016301,2]
[369028640,1751437766723,-500.0,0.00016301,2]
[369028641,1751437766758,-500.0,0.00016301,2]
[369028642,1751437766795,-500.0,0.00016301,2]
[369028643,1751437766836,-500.0,0.00016301,2]
[369028644,1751437766875,-500.0,0.00016301,2]
[369028645,1751437766913,-500.0,0.00016301,2]
[369028646,1751437766949,-500.0,0.00016301,2]
[369028647,1751437766981,-500.0,0.00016301,2]
[369028648,1751437767016,-500.0,0.00016301,2]
[369028649,1751437767055,-500.0,0.00016301,2]
[369028650,1751437767088,-500.0,0.00016301,2]
[369028651,1751437767125,-254.16475558,0.00016301,2]
[369028652,1751437767160,-500.0,0.00016301,2]
[369028653,1751437767197,-500.0,0.00016301,2]
[369028654,1751437767241,-553.18297719,0.00016301,2]
[369028655,1751437767279,-500.0,0.00016301,2]
[369028656,1751437767314,-646.07703434,0.00016301,2]
[369028657,1751437767350,-500.0,0.00016301,2]
[369028658,1751437767385,-500.0,0.00016301,2]
[369028659,1751437767419,-255.3507177,0.00016301,2]
[369028660,1751437767561,-244.6492823,0.00016301,2]
[369028661,1751437767597,-500.0,0.00016301,2]
[369028662,1751437767633,-500.0,0.00016301,2]
[369028663,1751437767671,-500.0,0.00016301,2]
[369028664,1751437767704,-500.0,0.00016301,2]
[369028665,1751437767737,-500.0,0.00016301,2]
[369028666,1751437767771,-500.0,0.00016301,2]
[369028667,1751437767804,-500.0,0.00016301,2]
[369028668,1751437767842,-325.48840356,0.00016301,2]
[369028669,1751437767878,-500.0,0.00016301,2]
[369028670,1751437767916,-500.0,0.00016301,2]
[369028671,1751437767954,-500.0,0.00016301,2]
[369028672,1751437767987,-500.0,0.00016301,2]
[369028673,1751437768022,-489.69566058,0.00016301,2]
[369028674,1751437768056,-500.0,0.00016301,2]
[369028675,1751437768088,-500.0,0.00016301,2]
[369028676,1751437768123,-500.0,0.00016301,2]
[369028677,1751437768171,-500.0,0.00016301,2]
[369028678,1751437768212,-500.0,0.00016301,2]
[369028679,1751437768251,-500.0,0.00016301,2]
[369028680,1751437768289,-500.0,0.00016301,2]
[369028681,1751437768328,-500.0,0.00016301,2]
[369028682,1751437768366,-500.0,0.00016301,2]
[369028683,1751437768397,-500.0,0.00016301,2]
[369028684,1751437768687,-500.0,0.00016301,2]
[369028685,1751437768726,-380.33330712,0.00016301,2]
[369028686,1751437768832,-119.66669288,0.00016301,2]
[369028687,1751437768862,-500.0,0.00016301,2]
[369028688,1751437768891,-500.0,0.00016301,2]
[369028689,1751437768919,-500.0,0.00016301,2]
[369028690,1751437768952,-500.0,0.00016301,2]
[369028691,1751437768983,-500.0,0.00016301,2]
[369028692,1751437769014,-500.0,0.00016301,2]
[369028693,1751437769043,-500.0,0.00016301,2]
[369028694,1751437769074,-499.99999999,0.00016301,2]
[369028695,1751437769106,-187.29062191,0.00016309,2]
[369028696,1751437769134,-160.0,0.00016309,2]
[369028697,1751437771381,-4992.89294844,0.0001631,2]
[369028698,1751437771396,-25000.0,0.0001631,2]
[369028699,1751437771410,-25000.0,0.0001631,2]
[369028700,1751437771425,-25000.0,0.0001631,2]
[369028701,1751437771453,-25000.0,0.0001631,2]
[369028702,1751437771468,-25000.0,0.0001631,2]
[369028703,1751437771483,-25000.0,0.0001631,2]
[369028704,1751437771498,-25000.0,0.0001631,2]
[369028705,1751437771515,-25000.0,0.0001631,2]
[369028706,1751437771530,-25000.0,0.0001631,2]
[369028707,1751437771544,-25000.0,0.0001631,2]
[369028708,1751437771573,-714.2828,0.0001631,2]
[369028709,1751437771588,-25000.0,0.0001631,2]
[369028710,1751437771605,-25000.0,0.0001631,2]
[369028711,1751437771619,-25000.0,0.0001631,2]
[369028712,1751437771634,-25000.0,0.0001631,2]
[369028713,1751437771653,-14181.70245294,0.0001631,2]
[369028714,1751437771663,-658.54303468,0.00016338,2]
[369028715,1751437771673,-1651.53152066,0.00016338,2]